fUST/lending_fUST_20250726
["ID","MTS","AMOUNT","RATE_DAILY","PERIOD"]
[375037462,1753509040257,-460.0,0.00019178,2]
[375037463,1753509040266,-460.0,0.00019178,2]
[375037465,1753509040275,-460.0,0.00019178,2]
[375037468,1753509040285,-460.0,0.00019178,2]
[375037469,1753509040295,-460.0,0.00019178,2]
[375037471,1753509040304,-460.0,0.00019178,2]
[375037473,1753509040314,-253.67717767,0.00019178,2]
[375037475,1753509040324,-460.0,0.00019178,2]
[375037477,1753509040333,-460.51269332,0.00019178,2]
[375037479,1753509040342,-461.75125942,0.00019178,2]
[375037481,1753509040351,-460.0,0.00019178,2]
[375037483,1753509040360,-463.59719469,0.00019178,2]
[375037485,1753509040370,-460.0,0.00019178,2]
[375037487,1753509040385,-590.34,0.00019178,2]
[375037489,1753509040395,-460.0,0.00019178,2]
[375037492,1753509040406,-460.0,0.00019178,2]
[375037494,1753509040415,-460.0,0.00019178,2]
[375037496,1753509040425,-460.0,0.00019178,2]
[375037497,1753509040437,-284.15522117,0.00019178,2]
[375037499,1753509040447,-460.0,0.00019178,2]
[375037502,1753509040459,-460.0,0.00019178,2]
[375037503,1753509040470,-315.50129582,0.00019178,2]
[375037505,1753509040480,-460.0,0.00019178,2]
[375037507,1753509040491,-1289.94,0.00019178,2]
[375037509,1753509040500,-460.0,0.00019178,2]
[375037512,1753509040510,-460.0,0.00019178,2]
[375037514,1753509040520,-460.0,0.00019178,2]
[375037515,1753509040529,-434.2275008,0.00019178,2]
[375037517,1753509040538,-460.0,0.00019178,2]
[375037519,1753509040548,-460.0,0.00019178,2]
[375037521,1753509040557,-460.0,0.00019178,2]
[375037523,1753509040567,-460.0,0.00019178,2]
[375037525,1753509040576,-460.0,0.00019178,2]
[375037527,1753509040587,-460.0,0.00019178,2]
[375037529,1753509040597,-177.62326149,0.00019178,2]
[375037531,1753509040606,-463.83762708,0.00019178,2]
[375037533,1753509040615,-1178.49,0.00019178,2]
[375037536,1753509040625,-500.0,0.00019178,2]
[375037538,1753509040634,-463.2082903,0.00019178,2]
[375037540,1753509040644,-460.0,0.00019178,2]
[375037542,1753509040653,-460.0,0.00019178,2]
[375037544,1753509040663,-460.0,0.00019178,2]
[375037545,1753509040672,-460.0,0.00019178,2]
[375037547,1753509040682,-460.0,0.00019178,2]
[375037549,1753509040691,-460.0,0.00019178,2]
[375037551,1753509040700,-460.0,0.00019178,2]
[375037553,1753509040710,-460.0,0.00019178,2]
[375037555,1753509040720,-460.0,0.00019178,2]
[375037557,1753509040730,-460.0,0.00019178,2]
[375037560,1753509040740,-460.76692982,0.00019178,2]
[375037562,1753509040750,-460.0,0.00019178,2]
[375037564,1753509040759,-465.30767369,0.00019178,2]
[375037566,1753509040769,-460.0,0.00019178,2]
[375037568,1753509040779,-471.42265284,0.00019178,2]
[375037570,1753509040788,-464.82710296,0.00019178,2]
[375037572,1753509040798,-460.0,0.00019178,2]
[375037574,1753509040809,-460.0,0.00019178,2]
[375037576,1753509040818,-461.11195492,0.00019178,2]
[375037578,1753509040828,-713.47,0.00019178,2]
[375037580,1753509040837,-462.90702944,0.00019178,2]
[375037582,1753509040847,-460.0,0.00019178,2]
[375037584,1753509040856,-460.0,0.00019178,2]
[375037586,1753509040866,-460.0,0.00019178,2]
[375037587,1753509040875,-460.0,0.00019178,2]
[375037589,1753509040884,-460.0,0.00019178,2]
[375037591,1753509040894,-460.0,0.00019178,2]
[375037593,1753509040904,-460.0,0.00019178,2]
[375037595,1753509040913,-465.9192075,0.00019178,2]
[375037598,1753509040924,-460.0,0.00019178,2]
[375037599,1753509040934,-460.0,0.00019178,2]
[375037601,1753509040944,-460.0,0.00019178,2]
[375037604,1753509040955,-460.0,0.00019178,2]
[375037605,1753509040964,-321.37221673,0.00019178,7]
[375037615,1753509040974,-708.51,0.00019178,2]
[375037617,1753509041063,-460.0,0.00019178,2]
[375037619,1753509041072,-460.0,0.00019178,2]
[375037621,1753509041081,-460.0,0.00019178,2]
[375037623,1753509041091,-460.0,0.00019178,2]
[375037625,1753509041102,-460.0,0.00019178,2]
[375037627,1753509041111,-463.5648563,0.00019178,2]
[375037629,1753509041120,-458.6307424,0.00019178,2]
[375037631,1753509041130,-460.84634206,0.00019178,2]
[375037633,1753509041139,-466.42093496,0.00019178,2]
[375037635,1753509041149,-460.0,0.00019178,2]
[375037637,1753509041158,-1755.94,0.00019178,2]
[375037639,1753509041167,-460.0,0.00019178,2]
[375037641,1753509041176,-460.0,0.00019178,2]
[375037643,1753509041185,-460.0,0.00019178,2]
[375037645,1753509041195,-460.0,0.00019178,2]
[375037647,1753509041204,-460.0,0.00019178,2]
[375037649,1753509041213,-460.0,0.00019178,2]
[375037651,1753509041224,-460.0,0.00019178,2]
[375037653,1753509041233,-460.0,0.00019178,2]
[375037655,1753509041243,-460.0,0.00019178,2]
[375037657,1753509041252,-460.0,0.00019178,2]
[375037659,1753509041261,-460.0,0.00019178,2]
[375037661,1753509041270,-460.0,0.00019178,2]
[375037663,1753509041279,-460.0,0.00019178,2]
[375037665,1753509041289,-460.0,0.00019178,2]
[375037667,1753509041300,-993.42,0.00019178,2]
[375037669,1753509041309,-233.7905922,0.00019178,2]
[375037671,1753509041318,-460.0,0.00019178,2]
[375037673,1753509041328,-460.0,0.00019178,2]
[375037675,1753509041337,-460.0,0.00019178,2]
[375037677,1753509041347,-563.32,0.00019178,2]
[375037679,1753509041355,-460.0,0.00019178,2]
[375037681,1753509041365,-460.0,0.00019178,2]
[375037683,1753509041375,-462.01124205,0.00019178,2]
[375037685,1753509041384,-461.28144087,0.00019178,2]
[375037687,1753509041393,-460.0,0.00019178,2]
[375037689,1753509041402,-460.0,0.00019178,2]
[375037691,1753509041412,-460.0,0.00019178,2]
[375037693,1753509041420,-460.0,0.00019178,2]
[375037695,1753509041431,-460.0,0.00019178,2]
[375037697,1753509041440,-461.33378482,0.00019178,2]
[375037699,1753509041449,-460.0,0.00019178,2]
[375037701,1753509041458,-461.74108419,0.00019178,2]
[375037703,1753509041468,-460.0,0.00019178,2]
[375037705,1753509041477,-460.0,0.00019178,2]
[375037707,1753509041487,-460.70695709,0.00019178,2]
[375037709,1753509041496,-1214.11,0.00019178,2]
[375037711,1753509041507,-460.0,0.00019178,2]
[375037714,1753509041517,-460.0,0.00019178,2]
[375037716,1753509041526,-464.56293058,0.00019178,2]
[375037718,1753509041535,-3440.15,0.00019178,2]
[375037719,1753509041544,-460.0,0.00019178,2]
[375037721,1753509041554,-1612.21,0.00019178,2]
[375037723,1753509041563,-460.0,0.00019178,2]
[375037725,1753509041572,-460.0,0.00019178,2]
[375037727,1753509041582,-460.0,0.00019178,2]
[375037729,1753509041591,-460.0,0.00019178,2]
[375037731,1753509041600,-461.70160687,0.00019178,2]
[375037734,1753509041610,-460.0,0.00019178,2]
[375037736,1753509041619,-460.0,0.00019178,2]
[375037737,1753509041629,-460.0,0.00019178,2]
[375037739,1753509041639,-460.0,0.00019178,2]
[375037741,1753509041647,-500.0,0.00019178,2]
[375037743,1753509041657,-500.0,0.00019178,2]
[375037745,1753509041666,-460.73246361,0.00019178,2]
[375037747,1753509041675,-500.0,0.00019178,2]
[375037749,1753509041685,-500.0,0.00019178,2]
[375037751,1753509041695,-500.0,0.00019178,2]
[375037753,1753509041704,-500.0,0.00019178,2]
[375037755,1753509041714,-500.0,0.00019178,2]
[375037757,1753509041724,-500.0,0.00019178,2]
[375037760,1753509041736,-500.0,0.00019178,2]
[375037761,1753509041745,-500.0,0.00019178,2]
[375037763,1753509041754,-500.0,0.00019178,2]
[375037765,1753509041764,-500.0,0.00019178,2]
[375037768,1753509041774,-500.0,0.00019178,2]
[375037769,1753509041783,-500.0,0.00019178,2]
[375037771,1753509041793,-500.0,0.00019178,2]
[375037773,1753509041803,-500.0,0.00019178,2]
[375037775,1753509041812,-500.0,0.00019178,2]
[375037776,1753509041821,-540.4228368,0.00019178,2]
[375037777,1753509041831,-460.0,0.00019178,2]
[375037779,1753509041840,-460.0,0.00019178,2]
[375037780,1753509041849,-460.0,0.00019178,2]
[375037782,1753509041859,-1029.18,0.00019178,2]
[375037784,1753509041869,-460.0,0.00019178,2]
[375037786,1753509041878,-460.0,0.00019178,2]
[375037788,1753509041887,-460.0,0.00019178,2]
[375037790,1753509041897,-460.0,0.00019178,2]
[375037791,1753509041906,-460.9871696,0.00019178,2]
[375037792,1753509041915,-460.0,0.00019178,2]
[375037793,1753509041924,-460.0,0.00019178,2]
[375037794,1753509041933,-460.0,0.00019178,2]
[375037795,1753509041942,-464.74252155,0.00019178,2]
[375037796,1753509041952,-471.18,0.00019178,2]
[375037797,1753509041961,-460.0,0.00019178,2]
[375037798,1753509041970,-460.0,0.00019178,2]
[375037799,1753509041979,-515.65,0.00019178,2]
[375037800,1753509041988,-460.0,0.00019178,2]
[375037801,1753509041998,-460.0,0.00019178,2]
[375037802,1753509042007,-3242.02,0.00019178,2]
[375037803,1753509042016,-460.0,0.00019178,2]
[375037804,1753509042025,-462.16146119,0.00019178,2]
[375037805,1753509042034,-386.69144742,0.00019178,2]
[375037806,1753509042044,-1063.98,0.00019178,2]
[375037807,1753509042053,-460.0,0.00019178,2]
[375037808,1753509042068,-460.0,0.00019178,2]
[375037809,1753509042077,-460.0,0.00019178,2]
[375037810,1753509042086,-460.0,0.00019178,2]
[375037811,1753509042095,-448.70361028,0.00019178,2]
[375037812,1753509042104,-460.0,0.00019178,2]
[375037813,1753509042113,-460.0,0.00019178,2]
[375037814,1753509042122,-5546.44,0.00019178,2]
[375037815,1753509042131,-573.28,0.00019178,2]
[375037816,1753509042140,-1196.68,0.00019178,2]
[375037817,1753509042149,-460.0,0.00019178,2]
[375037818,1753509042158,-460.0,0.00019178,2]
[375037819,1753509042167,-464.19589858,0.00019178,2]
[375037820,1753509042175,-7928.23,0.00019178,2]
[375037821,1753509042184,-460.0,0.00019178,2]
[375037822,1753509042194,-460.0,0.00019178,2]
[375037823,1753509042203,-460.0,0.00019178,2]
[375037824,1753509042212,-1329.39,0.00019178,2]
[375037825,1753509042221,-514.5509477,0.00019178,2]
[375037826,1753509042230,-460.0,0.00019178,2]
[375037827,1753509042239,-460.0,0.00019178,2]
[375037828,1753509042248,-443.10377566,0.00019178,2]
[375037829,1753509042258,-460.0,0.00019178,2]
[375037830,1753509042267,-460.0,0.00019178,2]
[375037831,1753509042276,-460.0,0.00019178,2]
[375037833,1753509042285,-460.0,0.00019178,2]
[375037835,1753509042295,-460.0,0.00019178,2]
[375037836,1753509042304,-3523.78,0.00019178,2]
[375037837,1753509042314,-460.0,0.00019178,2]
[375037838,1753509042323,-460.0,0.00019178,2]
[375037839,1753509042332,-955.11,0.00019178,2]
[375037840,1753509042341,-943.6,0.00019178,2]
[375037841,1753509042351,-460.0,0.00019178,2]
[375037842,1753509042360,-460.0,0.00019178,2]
[375037843,1753509042370,-460.0,0.00019178,2]
[375037844,1753509042379,-460.0,0.00019178,2]
[375037845,1753509042388,-460.0,0.00019178,2]
[375037846,1753509042397,-460.0,0.00019178,2]
[375037847,1753509042407,-460.0,0.00019178,2]
[375037849,1753509042416,-800.66,0.00019178,2]
[375037850,1753509042426,-1797.98,0.00019178,2]
[375037851,1753509042435,-460.0,0.00019178,2]
[375037852,1753509042444,-460.0,0.00019178,2]
[375037853,1753509042454,-460.0,0.00019178,2]
[375037854,1753509042463,-460.0,0.00019178,2]
[375037856,1753509042473,-1074.53,0.00019178,2]
[375037859,1753509042482,-460.0,0.00019178,2]
[375037860,1753509042491,-786.41,0.00019178,2]
[375037861,1753509042500,-2809.54,0.00019178,2]
[375037863,1753509042510,-460.0,0.00019178,2]
[375037864,1753509042594,-460.0,0.00019178,2]
[375037865,1753509042604,-328.43181661,0.00019178,2]
[375037866,1753509042613,-460.0,0.00019178,2]
[375037867,1753509042623,-460.7798428,0.00019178,2]
[375037868,1753509042632,-460.0,0.00019178,2]
[375037869,1753509042642,-460.48497081,0.00019178,2]
[375037870,1753509042651,-467.31220708,0.00019178,2]
[375037871,1753509042660,-460.0,0.00019178,2]
[375037872,1753509042670,-460.0,0.00019178,2]
[375037873,1753509042679,-460.0,0.00019178,2]
[375037874,1753509042689,-469.48150623,0.00019178,2]
[375037875,1753509042699,-460.0,0.00019178,2]
[375037876,1753509042708,-460.0,0.00019178,2]
[375037877,1753509042717,-4656.01,0.00019178,2]
[375037878,1753509042727,-460.0,0.00019178,2]
[375037879,1753509042736,-460.0,0.00019178,2]
[375037880,1753509042746,-173.70711942,0.00019178,2]
[375037881,1753509042755,-641.86,0.00019178,2]
[375037882,1753509042763,-460.0,0.00019178,2]
[375037883,1753509042773,-460.0,0.00019178,2]
[375037884,1753509042782,-460.0,0.00019178,2]
[375037885,1753509042791,-460.0,0.00019178,2]
[375037886,1753509042801,-1040.25,0.00019178,2]
[375037887,1753509042811,-498.83,0.00019178,2]
[375037888,1753509042820,-460.0,0.00019178,2]
[375037889,1753509042830,-460.0,0.00019178,2]
[375037890,1753509042839,-460.0,0.00019178,2]
[375037891,1753509042849,-4099.53,0.00019178,2]
[375037892,1753509042859,-461.70278163,0.00019178,2]
[375037893,1753509042869,-460.0,0.00019178,2]
[375037894,1753509042878,-460.0,0.00019178,2]
[375037895,1753509042887,-753.7,0.00019178,2]
[375037896,1753509042897,-460.0,0.00019178,2]
[375037897,1753509042906,-460.0,0.00019178,2]
[375037898,1753509042916,-463.9861852,0.00019178,2]
[375037899,1753509042926,-1179.15,0.00019178,2]
[375037900,1753509042936,-461.24724594,0.00019178,2]
[375037901,1753509042947,-460.0,0.00019178,2]
[375037902,1753509042956,-460.0,0.00019178,2]
[375037903,1753509042965,-203.707735,0.00019178,2]
[375037904,1753509042976,-460.0,0.00019178,2]
[375037905,1753509042986,-3049.64,0.00019178,2]
[375037906,1753509042996,-460.0,0.00019178,2]
[375037907,1753509043006,-460.0,0.00019178,2]
[375037908,1753509043016,-460.0,0.00019178,2]
[375037909,1753509043025,-461.32070749,0.00019178,2]
[375037910,1753509043034,-583.08153726,0.00019178,2]
[375037911,1753509043044,-809.11,0.00019178,2]
[375037912,1753509043054,-460.0,0.00019178,2]
[375037913,1753509043068,-155.0,0.00019178,2]
[375037914,1753509043077,-461.5304504,0.00019178,2]
[375037916,1753509043086,-460.0,0.00019178,2]
[375037917,1753509043096,-460.0,0.00019178,2]
[375037918,1753509043106,-460.0,0.00019178,2]
[375037919,1753509043116,-2027.11,0.00019178,2]
[375037920,1753509043126,-460.0,0.00019178,2]
[375037921,1753509043135,-460.0,0.00019178,2]
[375037922,1753509043145,-460.0,0.00019178,2]
[375037923,1753509043155,-551.89,0.00019178,2]
[375037924,1753509043165,-460.0,0.00019178,2]
[375037925,1753509043175,-460.0,0.00019178,2]
[375037926,1753509043184,-802.04,0.00019178,2]
[375037927,1753509043193,-2640.54,0.00019178,2]
[375037928,1753509043203,-460.0,0.00019178,2]
[375037929,1753509043212,-585.77,0.00019178,2]
[375037930,1753509043222,-460.80938345,0.00019178,2]
[375037931,1753509043233,-460.0,0.00019178,2]
[375037932,1753509043243,-464.33019395,0.00019178,2]
[375037933,1753509043253,-460.62106973,0.00019178,2]
[375037934,1753509043263,-460.0,0.00019178,2]
[375037935,1753509043272,-460.0,0.00019178,2]
[375037936,1753509043282,-458.5192034,0.00019178,2]
[375037937,1753509043291,-460.0,0.00019178,2]
[375037938,1753509043300,-461.38260834,0.00019178,2]
[375037939,1753509043310,-3239.8,0.00019178,2]
[375037940,1753509043319,-460.0,0.00019178,2]
[375037941,1753509043330,-462.54360865,0.00019178,2]
[375037942,1753509043340,-460.0,0.00019178,2]
[375037943,1753509043349,-403.03499378,0.00019178,2]
[375037944,1753509043359,-460.0,0.00019178,2]
[375037945,1753509043368,-460.0,0.00019178,2]
[375037946,1753509043378,-460.0,0.00019178,2]
[375037947,1753509043387,-460.0,0.00019178,2]
[375037948,1753509043396,-460.0,0.00019178,2]
[375037949,1753509043406,-460.0,0.00019178,2]
[375037950,1753509043415,-463.75894886,0.00019178,2]
[375037951,1753509043424,-463.99206304,0.00019178,2]
[375037952,1753509043434,-460.0,0.00019178,2]
[375037953,1753509043443,-460.0,0.00019178,2]
[375037954,1753509043453,-500.0,0.00019178,2]
[375037955,1753509043462,-465.52,0.00019178,2]
[375037956,1753509043470,-500.0,0.00019178,2]
[375037957,1753509043479,-500.0,0.00019178,2]
[375037958,1753509043489,-500.0,0.00019178,2]
[375037959,1753509043498,-500.0,0.00019178,2]
[375037960,1753509043507,-500.0,0.00019178,2]
[375037961,1753509043516,-500.0,0.00019178,2]
[375037962,1753509043526,-500.0,0.00019178,2]
[375037963,1753509043535,-500.0,0.00019178,2]
[375037964,1753509043545,-500.0,0.00019178,2]
[375037965,1753509043555,-500.0,0.00019178,2]
[375037966,1753509043771,-500.0,0.00019178,2]
[375037968,1753509043782,-500.0,0.00019178,2]
[375037970,1753509043792,-500.0,0.00019178,2]
[375037972,1753509043802,-461.40349108,0.00019178,2]
[375037974,1753509043812,-2715.35,0.00019178,2]
[375037975,1753509043822,-500.0,0.00019178,2]
[375037977,1753509043832,-500.0,0.00019178,2]
[375037980,1753509043842,-500.0,0.00019178,2]
[375037982,1753509043852,-460.0,0.00019178,2]
[375037983,1753509043862,-500.0,0.00019178,2]
[375037985,1753509043872,-460.0,0.00019178,2]
[375037987,1753509043881,-460.0,0.00019178,2]
[375037989,1753509043891,-460.0,0.00019178,2]
[375037991,1753509043900,-954.71,0.00019178,2]
[375037993,1753509043910,-460.0,0.00019178,2]
[375037995,1753509043919,-1231.0,0.00019178,2]
[375037997,1753509043929,-460.0,0.00019178,2]
[375037999,1753509043938,-460.0,0.00019178,2]
[375038001,1753509043948,-460.0,0.00019178,2]
[375038003,1753509043957,-460.0,0.00019178,2]
[375038005,1753509043966,-460.0,0.00019178,2]
[375038007,1753509043975,-460.0,0.00019178,2]
[375038009,1753509043984,-460.0,0.00019178,2]
[375038011,1753509043993,-460.0,0.00019178,2]
[375038013,1753509044002,-460.0,0.00019178,2]
[375038015,1753509044011,-460.0,0.00019178,2]
[375038017,1753509044020,-601.52,0.00019178,2]
[375038019,1753509044029,-500.0,0.00019178,2]
[375038021,1753509044037,-460.0,0.00019178,2]
[375038023,1753509044047,-460.0,0.00019178,2]
[375038024,1753509044058,-500.0,0.00019178,2]
[375038026,1753509044068,-500.0,0.00019178,2]
[375038028,1753509044077,-460.0,0.00019178,2]
[375038030,1753509044087,-460.0,0.00019178,2]
[375038032,1753509044095,-500.0,0.00019178,2]
[375038034,1753509044105,-500.0,0.00019178,2]
[375038036,1753509044114,-500.0,0.00019178,2]
[375038038,1753509044123,-460.0,0.00019178,2]
[375038040,1753509044132,-500.0,0.00019178,2]
[375038042,1753509044141,-500.0,0.00019178,2]
[375038044,1753509044151,-447.28,0.00019178,2]
[375038054,1753509044230,-460.0,0.00019178,2]
[375038056,1753509044239,-500.0,0.00019178,2]
[375038058,1753509044250,-462.37168073,0.00019178,2]
[375038060,1753509044261,-460.0,0.00019178,2]
[375038062,1753509044271,-460.0,0.00019178,2]
[375038064,1753509044281,-500.0,0.00019178,2]
[375038066,1753509044290,-500.0,0.00019178,2]
[375038068,1753509044300,-500.0,0.00019178,2]
[375038070,1753509044310,-634.48615159,0.00019178,2]
[375038072,1753509044319,-460.0,0.00019178,2]
[375038074,1753509044328,-1308.76,0.00019178,2]
[375038076,1753509044338,-460.99829227,0.00019178,2]
[375038078,1753509044347,-500.0,0.00019178,2]
[375038080,1753509044357,-460.0,0.00019178,2]
[375038082,1753509044367,-460.0,0.00019178,2]
[375038084,1753509044376,-466.7341785,0.00019178,2]
[375038086,1753509044385,-1568.83,0.00019178,2]
[375038088,1753509044395,-508.19039565,0.00019178,2]
[375038090,1753509044404,-546.86,0.00019178,2]
[375038091,1753509044413,-460.0,0.00019178,2]
[375038092,1753509044422,-460.0,0.00019178,2]
[375038093,1753509044431,-160.12737902,0.00019178,2]
[375038094,1753509044440,-460.0,0.00019178,2]
[375038095,1753509044449,-460.0,0.00019178,2]
[375038096,1753509044458,-460.0,0.00019178,2]
[375038097,1753509044467,-937.86,0.00019178,2]
[375038098,1753509044476,-2148.42,0.00019178,2]
[375038099,1753509044485,-460.0,0.00019178,2]
[375038100,1753509044493,-460.0,0.00019178,2]
[375038101,1753509044503,-460.87807703,0.00019178,2]
[375038102,1753509044512,-300.95510676,0.00019178,2]
[375038104,1753509044521,-799.88,0.00019178,2]
[375038106,1753509044530,-465.62790914,0.00019178,2]
[375038108,1753509044540,-460.0,0.00019178,2]
[375038110,1753509044549,-460.84720458,0.00019178,2]
[375038112,1753509044559,-462.45359486,0.00019178,2]
[375038114,1753509044569,-273.91261486,0.00019178,2]
[375038116,1753509044580,-460.0,0.00019178,2]
[375038119,1753509044589,-11639.23,0.00019178,2]
[375038121,1753509044598,-460.81416241,0.00019178,2]
[375038123,1753509044608,-460.0,0.00019178,2]
[375038124,1753509044617,-460.0,0.00019178,2]
[375038127,1753509044627,-460.0,0.00019178,2]
[375038128,1753509044636,-460.0,0.00019178,2]
[375038131,1753509044646,-460.0,0.00019178,2]
[375038133,1753509044655,-460.0,0.00019178,2]
[375038135,1753509044666,-460.0,0.00019178,2]
[375038137,1753509044676,-461.43464817,0.00019178,2]
[375038139,1753509044685,-498.08,0.00019178,2]
[375038141,1753509044695,-500.0,0.00019178,2]
[375038143,1753509044704,-666.0,0.00019178,2]
[375038145,1753509044714,-600.136016,0.00019178,2]
[375038147,1753509044723,-5000.0,0.00019178,2]
[375038148,1753509044732,-153.0,0.00019178,2]
[375038150,1753509044741,-153.0,0.00019178,2]
[375038153,1753509044751,-153.0,0.000192,2]
[375038154,1753509044760,-151.0,0.000192,2]
[375038156,1753509044770,-1719.11730584,0.00019205,5]
[375038158,1753509044779,-153.0,0.00019233,2]
[375038161,1753509044789,-154.2133676,0.00019233,2]
[375038163,1753509044798,-153.0,0.00019233,2]
[375038165,1753509044808,-153.0,0.00019233,2]
[375038166,1753509044817,-153.0,0.00019233,2]
[375038168,1753509044826,-335.28681867,0.00019242,2]
[375038171,1753509044839,-602.82316111,0.00019242,2]
[375038172,1753509044848,-153.0,0.000193,2]
[375038174,1753509044863,-151.0,0.000193,2]
[375038175,1753509044873,-151.0,0.000193,2]
[375038176,1753509044882,-151.0,0.000193,2]
[375038177,1753509044891,-151.0,0.000193,2]
[375038178,1753509044900,-153.0,0.000193,2]
[375038179,1753509044909,-500.0,0.00019329,2]
[375038180,1753509044919,-500.0,0.00019329,2]
[375038181,1753509044928,-20.72863191,0.00019329,2]
[375038182,1753509044959,-479.27136809,0.00019329,2]
[375038183,1753509044969,-410.48074005,0.00019329,2]
[375038184,1753509044978,-500.0,0.00019329,2]
[375038185,1753509044987,-500.0,0.00019329,2]
[375038186,1753509044996,-591.66326158,0.00019329,2]
[375038187,1753509045006,-100000.0,0.00019329,2]
[375038188,1753509045015,-5888.0,0.00019433,2]
[375038189,1753509045025,-160.0,0.00019442,2]
[375038190,1753509045034,-160.0,0.00019442,2]
[375038191,1753509045043,-5000.0,0.00019442,2]
[375038192,1753509045052,-160.0,0.00019444,2]
[375038193,1753509045066,-160.0,0.00019444,2]
[375038195,1753509045075,-476.98041219,0.00019444,2]
[375038197,1753509045083,-160.0,0.00019444,2]
[375038199,1753509045092,-215.9757969,0.00019444,2]
[375038201,1753509045103,-160.0,0.00019444,2]
[375038203,1753509045112,-312.16666667,0.00019444,2]
[375038205,1753509045123,-231.25662632,0.00019444,2]
[375038206,1753509045140,-12629.83479014,0.00019444,2]
[375038207,1753509045150,-160.0,0.00019444,2]
[375038209,1753509045159,-160.0,0.00019444,2]
[375038211,1753509045168,-214.8008262,0.00019444,2]
[375038212,1753509045177,-840.57612966,0.00019444,2]
[375038213,1753509045186,-526.41699184,0.00019444,2]
[375038214,1753509045196,-160.0,0.00019444,2]
[375038215,1753509045205,-151.0,0.00019452,2]
[375038216,1753509045214,-460.0,0.00019452,2]
[375038217,1753509045223,-348.62757247,0.00019452,2]
[375038218,1753509045232,-460.0,0.00019452,2]
[375038219,1753509045242,-463.53273965,0.00019452,2]
[375038220,1753509045251,-460.0,0.00019452,2]
[375038221,1753509045260,-460.0,0.00019452,2]
[375038222,1753509045269,-460.0,0.00019452,2]
[375038223,1753509045280,-460.0,0.00019452,2]
[375038224,1753509045290,-466.58084196,0.00019452,2]
[375038225,1753509045300,-461.62415966,0.00019452,2]
[375038226,1753509045309,-460.0,0.00019452,2]
[375038227,1753509045318,-263.19976411,0.00019452,2]
[375038228,1753509045328,-465.83268893,0.00019452,2]
[375038229,1753509045337,-460.0,0.00019452,2]
[375038230,1753509045347,-460.0,0.00019452,2]
[375038231,1753509045356,-460.0,0.00019452,2]
[375038232,1753509045365,-542.32104296,0.00019452,2]
[375038233,1753509045375,-460.0,0.00019452,2]
[375038234,1753509045384,-460.0,0.00019452,2]
[375038235,1753509045394,-460.0,0.00019452,2]
[375038236,1753509045403,-460.0,0.00019452,2]
[375038237,1753509045412,-460.0,0.00019452,2]
[375038238,1753509045422,-460.0,0.00019452,2]
[375038239,1753509045432,-460.83801728,0.00019452,2]
[375038240,1753509045441,-460.0,0.00019452,2]
[375038241,1753509045450,-430.43764172,0.00019452,2]
[375038242,1753509045460,-418.9143448,0.00019452,2]
[375038243,1753509045469,-462.20266952,0.00019452,2]
[375038244,1753509045478,-460.0,0.00019452,2]